Cogmind - Beta 13 @@@ ROGUE MODE // 2024.04.15 @ 11:24:55 Player: Thaleia Result: Self-destructed Performance ------------- Evolutions (1) 500 Regions Visited (2) 400 Robots Destroyed (18) 90 Value Destroyed (269) 269 Prototype IDs (0) 0 Alien Tech Used (0) 0 Bonus (0) 0 TOTAL SCORE: 1259 Bonus ------- None Cogmind --------- Core Integrity 325/400 Matter 4/300 Energy 250/250 System Corruption 0% Temperature Cool (0) Movement Walking (120) Location -9/Materials Parts ------- > --- POWER (1) -------- Ion Engine > --- PROPULSION (3) --- Carbon-fiber Leg Carbon-fiber Leg Carbon-fiber Leg > --- UTILITY (3) ------ Large Storage Unit Targeting Computer ECM Suite > --- WEAPON (2) ------- Autogun Autogun > --- INVENTORY (15) --- Light Ion Engine Carbon-fiber Leg Medium Storage Unit Large Storage Unit Structural Scanner Melee Analysis Suite Improved Light Armor Plating Improved Light Armor Plating Autogun Autogun Rocket Launcher Rocket Launcher Peak State ------------ > --- POWER ------------ Light Ion Engine > --- PROPULSION ------- Carbon-fiber Leg Carbon-fiber Leg Carbon-fiber Leg > --- UTILITY ---------- Large Storage Unit Targeting Computer ECM Suite > --- WEAPON ----------- Autogun Autogun > --- INVENTORY -------- Light Ion Engine Carbon-fiber Leg Medium Storage Unit Large Storage Unit Structural Scanner Improved Light Armor Plating Improved Light Armor Plating Autogun Autogun Mini Grenade Launcher Mini Grenade Launcher [Rating: 19] Favorites ----------- Power Light Ion Engine Engine Light Ion Engine Propulsion Light Treads Treads Light Treads Leg Carbon-fiber Leg Utility ECM Suite Device ECM Suite Storage Medium Storage Unit Processor Targeting Computer Weapon Autogun Ballistic Gun Autogun Launcher Rocket Launcher Build | -11 -10 -9 ------- Run | Yrd Mat Mat Slots Evolved 2 | . . 2 Power . | . . . Propulsion 1 | . . 1 Utility 1 | . . 1 Weapon . | . . . Parts Attached 25 | 5 8 12 Power 6 | 1 2 3 Engine 6 | 1 2 3 Core . | . . . Reactor . | . . . Propulsion 5 | 2 . 3 Treads 2 | 2 . . Leg 3 | . . 3 Wheel . | . . . Hover . | . . . Flight . | . . . Utility 6 | 1 2 3 Device 2 | . 1 1 Storage 3 | 1 1 1 Processor 1 | . . 1 Hackware . | . . . Protection . | . . . Artifact . | . . . Weapon 8 | 1 4 3 Energy Gun . | . . . Energy Cannon . | . . . Ballistic Gun 6 | 1 4 1 Ballistic Cannon . | . . . Launcher 2 | . . 2 Special Weapon . | . . . Impact Weapon . | . . . Slashing Weapon . | . . . Piercing Weapon . | . . . Special Melee Weapon . | . . . Unidentified Prototypes . | . . . Parts Lost . | . . . Power . | . . . Propulsion . | . . . Utility . | . . . Weapon . | . . . Highest Loss Streak . | . . . To Critical Strikes . | . . . Average Slot Usage (%) 94 | . 93 95 Engine 12 | . 14 11 Treads 16 | . 28 6 Leg 12 | . . 23 Device 11 | . 11 10 Storage 12 | . 14 11 Processor 4 | . . 9 Ballistic Gun 22 | . 23 21 Naked Turns . | . . . Heaviest Build 34 | 10 21 34 Greatest Support 45 | 40 40 45 Greatest Overweight (x) 2 | . . 2 Average Overweight (x) . | . . . Largest Inventory Capacity 15 | 8 10 15 Average Capacity 11 | 6 9 14 Most Carried 15 | 3 10 15 Average Carried 8 | 1 6 11 Final Capacity 15 | 8 10 15 Final Carried 12 | 3 8 12 Class Distribution -------------------- 100% | Mutant Dominant Class ---------------- Mutant | -10/Materials Mutant | -9/Materials Resources | -11 -10 -9 ----------- Run | Yrd Mat Mat Matter Collected 345 | 165 103 77 Remotely . | . . . Salvage Created 350 | . 103 247 Parts 33 | . 10 23 Haulers Intercepted . | . . . Recyclers Shooed . | . . . Parts Field Recycled . | . . . Retrieved Matter . | . . . Parts Self-Destructed . | . . . Prevented . | . . . Kills | -11 -10 -9 ------- Run | Yrd Mat Mat Combat Hostiles Destroyed 12 | . 6 6 Guns 10 | . 6 4 AOE 2 | . . 2 Classes Destroyed 7 | . 1 6 Worker 2 | . . 2 Builder 1 | . . 1 Tunneler 1 | . . 1 Watcher 2 | . . 2 Swarmer 9 | . 6 3 Grunt 2 | . . 2 Sentry 1 | . . 1 Best Kill Streak 6 | . 3 6 Combat Bots Only 5 | . 3 5 Max Kills in Single Turn 2 | . 1 2 Gunslinging . | . . . Exploded 1 | . . 1 Melee . | . . . Uniques/NPCs Destroyed . | . . . Combat | -11 -10 -9 -------- Run | Yrd Mat Mat Hostile Shots Fired 116 | . 69 47 Missed 30 | . 19 11 Damage Taken 836 | . 405 431 Core 158 | . 83 75 Absorbed by Shields . | . . . Core Remaining (%) 83 | 100 66 . Volleys Fired 37 | . 26 11 Largest 2 | . 2 2 Hottest 56 | . 40 56 Shots Fired 57 | . 39 18 Gun 53 | . 39 14 Cannon . | . . . Launcher 4 | . . 4 Special . | . . . Kinetic 53 | . 39 14 Thermal . | . . . Explosive 4 | . . 4 Electromagnetic . | . . . Robot Hit Streak 8 | . 7 8 Robot Miss Streak 4 | . 4 1 Penetration Max . | . . . Secondary Targets 1 | . . 1 Max Gunslinging Chain 1 | . . 1 Shots Hit Robots 31 | . 20 11 Core Hits 22 | . 6 16 Critical Kills . | . . . Critical Parts Destroyed . | . . . Critical Strikes . | . . . Melee Attacks . | . . . Impact . | . . . Slashing . | . . . Piercing . | . . . Sneak Attacks . | . . . Combat Hostiles . | . . . Follow-up Attacks . | . . . Damage Inflicted 757 | . 236 521 Guns 401 | . 236 165 Cannons . | . . . Explosions 356 | . . 356 Melee . | . . . Ramming . | . . . Kinetic 401 | . 236 165 Thermal . | . . . Explosive 356 | . . 356 Electromagnetic . | . . . Impact . | . . . Slashing . | . . . Piercing . | . . . Highest Corruption . | . . . Average Corruption . | . . . Corruption Purged . | . . . Corruption Blocked . | . . . Overload Shots . | . . . Overflow Damage 2 | . . 2 Projectiles . | . . . Explosions 2 | . . 2 Melee . | . . . Knockbacks . | . . . Impact . | . . . Kinetic . | . . . Secondary . | . . . Self-Inflicted Damage . | . . . Shots . | . . . Rammed . | . . . Targets Rammed . | . . . Kicked . | . . . Crushed . | . . . Highest Temperature 29 | . . 29 Average Temperature 15 | . . 15 Received Heat Transfer 126 | . . 126 Siege Activations . | . . . Robots Corrupted . | . . . Combat Hostiles . | . . . Parts Fried . | . . . Impact Corruptions . | . . . Robots Melted . | . . . Combat Hostiles . | . . . Parts Melted . | . . . Heat Transferred . | . . . Parts Sabotaged . | . . . Parts Stolen . | . . . Parts Stripped . | . . . Power Chain Reactions . | . . . Alert | -11 -10 -9 ------- Run | Yrd Mat Mat Peak Influence 229 | . 155 229 Initial . | . . . Average 34 | . 32 40 Maximum Alert Level 1 | . . 1 Low Security (%) 99 | 100 100 99 Level 1 . | . . . Level 2 . | . . . Level 3 . | . . . Level 4 . | . . . Level 5 . | . . . High Security . | . . . Max Security . | . . . Squads Dispatched . | . . . Investigation . | . . . Extermination . | . . . Reinforcement . | . . . Assault . | . . . Garrison . | . . . Intercept . | . . . Searches Triggered . | . . . Construction Impeded . | . . . Haulers Reinforced . | . . . Active Scanning Responses . | . . . Cargo Convoy Interrupts . | . . . Stealth | -11 -10 -9 --------- Run | Yrd Mat Mat Distress Signals 2 | . . 2 Communications Jammed . | . . . Distress Signals . | . . . Times Spotted 30 | . 16 14 Peak Tracking Total 6 | . 3 6 Tactical Retreats 4 | . 3 1 Traps | -11 -10 -9 ------- Run | Yrd Mat Mat Traps Triggered 1 | . . 1 Indirectly . | . . . Trap Hack Attempts . | . . . Triggered . | . . . Disarmed . | . . . Reprogrammed . | . . . Reused . | . . . Traps Extracted . | . . . Installed . | . . . Triggered . | . . . Objects Rigged 2 | . 2 . Machines | -11 -10 -9 ---------- Run | Yrd Mat Mat Machines Disabled 2 | . 1 1 Max in Single Turn 1 | . 1 1 Machines Repaired . | . . . Machines Dismantled . | . . . Machines Sabotaged . | . . . Overloaded Fab Kills . | . . . Hacking | -11 -10 -9 --------- Run | Yrd Mat Mat Machines Accessed 4 | . 1 3 Terminals 4 | . 1 3 Fabricators . | . . . Repair Stations . | . . . Recycling Units . | . . . Scanalyzers . | . . . Garrison Access . | . . . Total Hacks 10 | . 2 8 Successful 4 | . 1 3 Failed 6 | . 1 5 Catastrophic . | . . . Database Lockouts . | . . . Manual 5 | . 2 3 Terminals 10 | . 2 8 Fabricators . | . . . Repair Stations . | . . . Recycling Units . | . . . Scanalyzers . | . . . Garrison Access . | . . . Terminal Hacks 3 | . . 3 Record 1 | . . 1 Robot Analysis 1 | . . 1 Emergency Access Points 1 | . . 1 Fabricator Hacks . | . . . Repair Station Hacks . | . . . Recycling Unit Hacks . | . . . Scanalyzer . | . . . Garrison Access Hacks . | . . . Unauthorized Hacks 1 | . 1 . Terminals 1 | . 1 . Detonate 1 | . 1 . Fabricators . | . . . Repair Stations . | . . . Recycling Units . | . . . Scanalyzers . | . . . Garrison Access . | . . . Data Cores Recovered . | . . . Used . | . . . Hacking Detections 4 | . 1 3 Full Trace Events . | . . . Feedback Events . | . . . Feedback Blocked . | . . . Robot Schematics Acquired . | . . . Robots Built . | . . . Authchips . | . . . Time . | . . . Total Robot Build Rating . | . . . Part Schematics Acquired . | . . . Parts Built . | . . . Authchips . | . . . Time . | . . . Total Part Build Rating . | . . . Parts Repaired . | . . . Time . | . . . Parts Recycled . | . . . Recycled Matter . | . . . Retrieved Matter . | . . . Retrieved Components . | . . . Parts Scanalyzed . | . . . Part Schematics Acquired . | . . . Parts Damaged . | . . . Bothacking | -11 -10 -9 ------------ Run | Yrd Mat Mat Used RIF Installer . | . . . Robots Hacked . | . . . Non-combat . | . . . Combat . | . . . Robot Hacks Applied . | . . . Relay Couplers Released . | . . . Fabnet Peak Effective % . | . . . Robots Rewired . | . . . Allies Hacked . | . . . Hacks Repelled . | . . . Allies | -11 -10 -9 -------- Run | Yrd Mat Mat Total Allies . | . . . Largest Group . | . . . Highest-Rated Group . | . . . Highest-Rated Ally . | . . . Total Orders . | . . . Ally Attacks . | . . . Total Damage . | . . . Kills . | . . . Allies Corrupted . | . . . Allies Melted . | . . . Intel | -11 -10 -9 ------- Run | Yrd Mat Mat Robot Analysis Total 1 | . . 1 Derelict Logs Recovered . | . . . Drone Launches . | . . . Drone Recoveries . | . . . Exploration | -11 -10 -9 ------------- Run | Yrd Mat Mat Turns Passed 1929 | 121 883 925 Spaces Moved 1159 | 73 487 599 Core 5 | 5 . . Treads 703 | 68 487 148 Legs 451 | . . 451 Wheels . | . . . Hover . | . . . Flight . | . . . Fastest Speed 50 | 50 160 120 Average Speed 144 | 152 160 131 Slowest Speed 260 | 160 160 260 Overloaded Moves . | . . . Propulsion Burnouts . | . . . Robots Hopped . | . . . Cave-ins Triggered . | . . . Exploration Rate (%) 32 | 6 49 41 Regions Visited 2 Branch Regions . Pre-discovered Areas . | . . . Known Exits Taken . | . . . Unknown Exits Taken 2 | 1 1 . Scrap Searched . | . . . Spaces Dug . | . . . Terrain Destroyed 33 | . . 33 Melee . | . . . Projectile . | . . . AOE 33 | . . 33 Terrain Rammed . | . . . Walls Destroyed . | . . . Machines Disabled . | . . . Actions | -11 -10 -9 --------- Run | Yrd Mat Mat Total 1363 | 80 557 726 Wait 105 | . 23 82 Move 1157 | 72 486 599 Hop . | . . . Pick Up 19 | 3 7 9 Fast Attach 11 | 5 2 4 Attach 1 | . . 1 Detach 3 | . . 3 Swap 13 | . 6 7 Drop 17 | . 7 10 Fire 37 | . 26 11 Melee . | . . . Ram . | . . . Kick . | . . . Crush . | . . . Escape Stasis . | . . . Rewire . | . . . Trap . | . . . Miscellaneous . | . . . Route ------- -11/Scrapyard -10/Materials (discovered 3 exits: *Mat x2 / [*Min]) -9/Materials (discovered 2 exits: [*Mat] / [*Min]) History --------- Turn | Location | Event 10 | -11/Scrapyard | Discovered new exit (range 14) 122 | -11/Scrapyard | Entered Materials 220 | -10/Materials | Discovered new exit (range 8) 312 | -10/Materials | Build established: Mutant 359 | -10/Materials | Discovered new exit (range 12) 546 | -10/Materials | Discovered new exit (range 14) 1005 | -10/Materials | Entered another Materials area 1005 | -9/Materials | Evolved 2 slots: Propulsion x1, Utility x1 1514 | -9/Materials | Discovered new exit (range 8) 1698 | -9/Materials | Discovered new exit (range 3) 1930 | -9/Materials | Self-destructed Last Messages --------------- of resources. An authchip is now required to load schematics and initiate build orders, and the chips have been divided by schematic category to further limit the potential for abuse. 01834_ R-06 Scavenger collects Lgt. Assault Rifle. 01834_ U-05 Engineer lays Concrete. 01834_ K-01 Serf collects debris. 01834_ R-06 Scavenger collects Flight Unit. 01835_ The unstable cave ceiling collapses. 01836_ U-05 Engineer lays Concrete. 01836_ U-05 Engineer builds a Wall. 01838_ U-05 Engineer lays Concrete. 01840_ R-06 Scavenger collects Wheel. 01840_ K-01 Serf collects debris. 01841_ R-06 Scavenger collects Mni. Grenade Launcher. 01841_ U-05 Engineer builds a Wall. 01845_ U-05 Engineer lays Concrete. Map ----- +----------------------------------------------------+ | #???????? # % ""#???????????????? | | ! #??????????# ###???????????????? | | ########??????????## #?????????????????? | | ???????????????????# ]] #?????????????????? | | ???????????????????#[ ] ] ##########+##?????? | | ?????????????????### ????? | | ?????????????????# # ????? | | ?????????????????### ! ????? | | ?????????????????# # =%######/############ ?????? | | ?????????????????### # #??""???????????? | | ???????????????? #=% # #??"Y???????????? | | ?????????????? =!#*[ # ^ #? ???????????? | | ????????????? = # # ^ #? ????????????? | | ?????????????? # # #? ????????????? | | ????????????? + # #? ????????????? | | ????????????? """ # # ##/#????????????? | | ??????????????""" ## ## ## #????????????? | | ???????????????"" ??# ##########+## #????????????? | | ???????????????? ??# #????????# #????????????? | | ????????????????##??# #?######## #????????????? | | ????????????????????# #?# g # #????????????? | | ????????????????????? #?# g # #????????????? | | ????????????????????? #?# """ + #????????????? | | ????????????????????? ??# """Y #### #????????????? | | ????????????????????????# """g #??# #????????????? | | ????????????????????????#@ #??# #????????????? | | ????????????????????????########??# #????????????? | | ??????????????????????????????????# #????????????? | | ??????????????????????????????????# #????????????? | | ??????????????????????????????????# #????????????? | | ??????????????????????????????????# #????????????? | | ??????????????????????????????????# #????????????? | | ??????????????????????????????????# #????????????? | | ??????????????????????????????????? ?????????????? | | ??????????????????????????????????? ?????????????? | | ####??????????????????????????????? ?????????????? | | #??????????????????????????????? ?????????????? | | +??????????????????????????????? ?????????????? | | #??????????????????????????????? ?????????????? | | #??????????????????????????????? ?????????????? | | #?????????????????????????????????????????????? | | #?????????????????????????????????????????????? | | #?????????????????????????????????????????????? | | #?????????????????????????????????????????????? | | #####?????????????????????????????????????????? | | #?????????????????????????????????????????? | | #?????????????????????????????????????????? | | #?????????????????????????????????????????? | | !!#?????????????????????????????????????????? | | !#?????????????????????????????????????????? | +----------------------------------------------------+ Best States ------------- Heat Dissipation 28 Energy Generation 10 Energy Capacity 250 Matter Stores 215 Matter Capacity 300 Sight Range 16 Terrain Scan Density 10 ECM Strength 1 Evasion (%) 55 Targeting Accuracy 5 Recoil Reduction 2 Item Schematics ----------------- None Robot Schematics ------------------ None Fabricated ------------ Nothing Alien Tech Used ----------------- None Achievements -------------- None Challenges ------------ None Game ------ Seed DecoyExoskeletonPrototype Manual? 0 Play Time 00:18:26 Cumulative 5.4 hours Start 2024.04.15 @ 11:02:10 End 2024.04.15 @ 11:24:55 Sessions 1 Manual Loads 0 Difficulty Rogue Special Mode None Game No. 15 Rogue 15 Adventurer 0 Explorer 0 Win Type - Total 0 Types 0/0/0/0/0/0/0/0/0 Lore% 7 Gallery% 9 Achievement% 10 Wizard Run 0 Options --------- Layout 1 ASCII 0 Keyboard 1 Movement Arrows Keybinds 0 Fullscreen 1 Font 32/Tamsyn Map View 50x40 Zoom Use 0% Tactical HUD 1 Map Filters NONE Filters NONE Steam 0 RUN: 92bac022-597d-42c2-8d85-109bd8f5ade5